[Event "DVM U12 2024"]
[Site "Heidelberg"]
[Date "2024.12.28"]
[Round "3"]
[White "Gora, Jan"]
[Black "Xu, Yan"]
[Result "0-1"]
[ECO "C47"]
[WhiteElo "2047"]
[BlackElo "1268"]
[Annotator "NA RC"]
[PlyCount "82"]
[EventDate "2024.12.23"]
[EventType "team-tourn"]
[EventRounds "7"]
[EventCountry "GER"]
[SourceTitle "playchess.com"]
[Source "ChessBase"]
[SourceQuality "1"]
[TimeControl "40/5400+30:1800+30"]

1. e4 {[%emt 0:00:03]} e5 {[%emt 0:00:17]} 2. Nf3 {[%emt 0:00:09]} Nc6 {[%emt 0:00:13]} 3. d4 {[%emt 0:00:12]} exd4 {[%emt 0:00:25]} 4. Nxd4 {[%emt 0:00:09]} Bc5 {[%emt 0:00:25]} 5. Be3 {[%emt 0:00:17]} Nf6 {[%emt 0:00:47]} 6. Nc3 {[%emt 0:00:21]} d6 {[%emt 0:01:01]} 7. Bc4 {[%emt 0:02:02]} Qe7 {[%emt 0:01:00]} 8. f3 {[%emt 0:00:55]} Bd7 {[%emt 0:01:39]} 9. Qd2 {[%emt 0:02:29]} Ne5 {[%emt 0:01:08]} 10. Qe2 {[%emt 0:01:38]} a6 {[%emt 0:02:00]} 11. a3 {[%emt 0:04:41]} b5 {[%emt 0:01:31]} 12. Bd5 {[%emt 0:01:06]} c6 {[%emt 0:01:35]} 13. Bb3 {[%emt 0:02:44]} Bxd4 {[%emt 0:03:26]} 14. Bxd4 {[%emt 0:01:59]} c5 {[%emt 0:01:12]} 15. Bxe5 {[%emt 0:00:45]} Qxe5 {[%emt 0:01:06]} 16. a4 {[%emt 0:01:02]} b4 {[%emt 0:00:56]} 17. Nd5 {[%emt 0:00:39]} Nxd5 {[%emt 0:02:22]} 18. exd5 {[%emt 0:03:02]} Qxe2+ {[%emt 0:00:00]} 19. Kxe2 {[%emt 0:00:10]} O-O {[%emt 0:00:00]} 20. a5 {[%emt 0:00:22]} Bb5+ {[%emt 0:00:00]} 21. c4 {[%emt 0:01:41]} bxc3+ {[%emt 0:00:22]} 22. Kf2 {[%emt 0:00:26]} cxb2 {[%emt 0:00:17]} 23. Rab1 {[%emt 0:00:09]} Rfe8 {[%emt 0:01:08]} 24. Bd1 {[%emt 0:00:34]} Bc4 {[%emt 0:00:45]} 25. Rxb2 {[%emt 0:01:05]} Bxd5 {[%emt 0:01:38]} 26. h4 {[%emt 0:00:25]} Bc4 {[%emt 0:00:50]} 27. h5 {[%emt 0:00:46]} Bb5 {[%emt 0:00:55]} 28. g4 {[%emt 0:00:30]} c4 {[%emt 0:00:36]} 29. g5 {[%emt 0:00:48]} c3 {[%emt 0:00:46]} 30. Rc2 {[%emt 0:00:08]} Rac8 {[%emt 0:00:40]} 31. g6 {[%emt 0:00:21]} Bd3 {[%emt 0:00:44]} 32. Rc1 {[%emt 0:00:15]} c2 {[%emt 0:00:19]} 33. gxh7+ {[%emt 0:00:36]} Kxh7 {[%emt 0:00:18]} 34. f4 {[%emt 0:01:05]} cxd1=Q {[%emt 0:00:23]} 35. Rcxd1 {[%emt 0:00:41]} Rc2+ {[%emt 0:01:09]} 36. Kg3 {[%emt 0:00:35]} Re3+ {[%emt 0:00:38]} 37. Kh4 {[%emt 0:00:25]} Be4 {[%emt 0:01:47]} 38. Rhg1 {[%emt 0:01:09]} Rh2+ {[%emt 0:00:58]} 39. Kg4 {[%emt 0:00:16]} Kh6 {[%emt 0:01:53]} 40. Rxd6+ {[%emt 0:00:16]} g6 {[%emt 0:00:17]} 41. Rf1 {[%emt 0:32:08]} f5# {[%emt 0:31:03]} 0-1

[Event "DVM U12 2024"]
[Site "Heidelberg"]
[Date "2024.12.28"]
[Round "3"]
[White "Gersemann, Karl"]
[Black "Kovalskyy, Alicia"]
[Result "1-0"]
[ECO "C77"]
[WhiteElo "2012"]
[BlackElo "1758"]
[Annotator "NA RC"]
[PlyCount "69"]
[EventDate "2024.12.23"]
[EventType "team-tourn"]
[EventRounds "7"]
[EventCountry "GER"]
[SourceTitle "playchess.com"]
[Source "ChessBase"]
[SourceQuality "1"]
[TimeControl "40/5400+30:1800+30"]

1. e4 {[%emt 0:00:22]} e5 {[%emt 0:00:04]} 2. Nf3 {[%emt 0:00:06]} Nc6 {[%emt 0:00:03]} 3. Bb5 {[%emt 0:00:07]} a6 {[%emt 0:00:03]} 4. Ba4 {[%emt 0:00:07]} Nf6 {[%emt 0:00:03]} 5. d3 {[%emt 0:00:05]} b5 {[%emt 0:00:04]} 6. Bb3 {[%emt 0:00:05]} Be7 {[%emt 0:00:18]} 7. a4 {[%emt 0:00:08]} b4 {[%emt 0:02:06]} 8. a5 {[%emt 0:01:09]} d6 {[%emt 0:00:28]} 9. Nbd2 {[%emt 0:00:16]} O-O {[%emt 0:02:12]} 10. Nc4 {[%emt 0:00:20]} Re8 {[%emt 0:01:55]} 11. O-O {[%emt 0:00:17]} Bg4 {[%emt 0:01:00]} 12. Be3 {[%emt 0:01:29]} Bf8 {[%emt 0:02:30]} 13. h3 {[%emt 0:04:18]} Bh5 {[%emt 0:01:08]} 14. g4 {[%emt 0:05:36]} Bg6 {[%emt 0:13:50]} 15. Ba4 {[%emt 0:01:05]} Ne7 {[%emt 0:24:28]} 16. Bxe8 {[%emt 0:00:09]} Nxe8 {[%emt 0:00:36]} 17. Qd2 {[%emt 0:04:17]} f6 {[%emt 0:02:43]} 18. Nh4 {[%emt 0:05:46]} d5 {[%emt 0:05:07]} 19. Nxg6 {[%emt 0:01:20]} Nxg6 {[%emt 0:01:39]} 20. exd5 {[%emt 0:00:23]} Qxd5 {[%emt 0:01:09]} 21. f4 {[%emt 0:02:58]} exf4 {[%emt 0:07:39]} 22. Bxf4 {[%emt 0:01:19]} Nxf4 {[%emt 0:00:59]} 23. Qxf4 {[%emt 0:02:49]} Bc5+ {[%emt 0:05:14]} 24. Kh2 {[%emt 0:00:50]} Rd8 {[%emt 0:07:06]} 25. Qf3 {[%emt 0:02:51]} Qd4 {[%emt 0:05:22]} 26. b3 {[%emt 0:06:23]} Nd6 {[%emt 0:02:38]} 27. Nxd6 {[%emt 0:03:34]} Bxd6+ {[%emt 0:01:16]} 28. Kh1 {[%emt 0:03:15]} Qe5 {[%emt 0:01:48]} 29. Qf2 {[%emt 0:01:35]} Qg5 {[%emt 0:06:09]} 30. Qf5 {[%emt 0:04:14]} Qe3 {[%emt 0:01:17]} 31. Rf3 {[%emt 0:11:50]} Qd2 {[%emt 0:00:17]} 32. Rf2 {[%emt 0:00:23]} Qc3 {[%emt 0:01:03]} 33. Qe6+ {[%emt 0:01:23]} Kf8 {[%emt 0:00:44]} 34. Re1 {[%emt 0:01:02]} Be5 {[%emt 0:00:44]} 35. Qxe5 {[%emt 0:00:20]} 1-0

[Event "DVM U12 2024"]
[Site "Heidelberg"]
[Date "2024.12.28"]
[Round "3"]
[White "Sutharjan, Dakxwin"]
[Black "Kraus, Linus"]
[Result "0-1"]
[ECO "B15"]
[WhiteElo "1917"]
[BlackElo "1803"]
[Annotator "NA RC"]
[PlyCount "142"]
[EventDate "2024.12.23"]
[EventType "team-tourn"]
[EventRounds "7"]
[EventCountry "GER"]
[SourceTitle "playchess.com"]
[Source "ChessBase"]
[SourceQuality "1"]
[TimeControl "40/5400+30:1800+30"]

1. e4 {[%emt 0:00:02]} g6 {[%emt 0:00:13]} 2. d4 {[%emt 0:00:39]} Bg7 {[%emt 0:00:13]} 3. Nc3 {[%emt 0:01:10]} c6 {[%emt 0:00:12]} 4. Nf3 {[%emt 0:01:00]} d5 {[%emt 0:00:19]} 5. exd5 {[%emt 0:01:55]} cxd5 {[%emt 0:00:21]} 6. Bb5+ {[%emt 0:00:59]} Bd7 {[%emt 0:00:44]} 7. Qe2 {[%emt 0:02:52]} Nf6 {[%emt 0:08:58]} 8. O-O {[%emt 0:04:07]} O-O {[%emt 0:01:43]} 9. Bg5 {[%emt 0:02:32]} a6 {[%emt 0:02:32]} 10. Bxd7 {[%emt 0:01:36]} Nbxd7 {[%emt 0:02:53]} 11. Rad1 {[%emt 0:04:11]} e6 {[%emt 0:00:00]} 12. Rfe1 {[%emt 0:05:28]} Qb6 {[%emt 0:01:48]} 13. b3 {[%emt 0:00:00]} Qc6 {[%emt 0:00:43]} 14. Qd3 {[%emt 0:03:47]} Rfc8 {[%emt 0:00:53]} 15. Bd2 {[%emt 0:01:46]} b5 {[%emt 0:03:22]} 16. a3 {[%emt 0:02:15]} Bf8 {[%emt 0:00:44]} 17. Ra1 {[%emt 0:02:12]} Nb6 {[%emt 0:02:25]} 18. Ne5 {[%emt 0:03:42]} Qe8 {[%emt 0:03:07]} 19. Re3 {[%emt 0:03:41]} Nbd7 {[%emt 0:02:38]} 20. Nxd7 {[%emt 0:05:33]} Qxd7 {[%emt 0:00:30]} 21. Rf3 {[%emt 0:01:02]} Bg7 {[%emt 0:00:29]} 22. h3 {[%emt 0:03:07]} Qc6 {[%emt 0:03:00]} 23. Re1 {[%emt 0:02:53]} Ra7 {[%emt 0:01:07]} 24. Rc1 {[%emt 0:07:49]} Ne4 {[%emt 0:01:08]} 25. Re1 {[%emt 0:01:34]} Nxc3 {[%emt 0:04:54]} 26. Qxc3 {[%emt 0:01:19]} Rac7 {[%emt 0:01:39]} 27. Qxc6 {[%emt 0:00:56]} Rxc6 {[%emt 0:00:14]} 28. c3 {[%emt 0:00:03]} Bf8 {[%emt 0:01:22]} 29. b4 {[%emt 0:00:22]} Ra8 {[%emt 0:00:52]} 30. Rb1 {[%emt 0:01:32]} Bg7 {[%emt 0:02:31]} 31. Kf1 {[%emt 0:03:12]} Kf8 {[%emt 0:02:43]} 32. g4 {[%emt 0:03:06]} h6 {[%emt 0:02:03]} 33. h4 {[%emt 0:01:57]} Ke7 {[%emt 0:02:15]} 34. Ke2 {[%emt 0:02:22]} Rc4 {[%emt 0:03:11]} 35. a4 {[%emt 0:03:47]} e5 {[%emt 0:01:07]} 36. dxe5 {[%emt 0:07:55]} Rxg4 {[%emt 0:00:51]} 37. axb5 {[%emt 0:01:09]} axb5 {[%emt 0:00:33]} 38. Rf4 {[%emt 0:01:06]} Rxf4 {[%emt 0:01:28]} 39. Bxf4 {[%emt 0:00:04]} Ke6 {[%emt 0:01:07]} 40. Ke3 {[%emt 0:01:59]} Bxe5 {[%emt 0:03:00]} 41. Bxe5 {[%emt 0:30:36]} Kxe5 {[%emt 0:30:09]} 42. Re1 {[%emt 0:02:19]} h5 {[%emt 0:02:11]} 43. Kd3+ {[%emt 0:00:43]} Kd6 {[%emt 0:00:14]} 44. Re3 {[%emt 0:01:09]} Rc8 {[%emt 0:00:55]} 45. Rf3 {[%emt 0:01:47]} Rc7 {[%emt 0:01:08]} 46. Rf6+ {[%emt 0:08:06]} Ke5 {[%emt 0:01:26]} 47. Rb6 {[%emt 0:00:02]} Rc4 {[%emt 0:00:50]} 48. Rxb5 {[%emt 0:00:10]} Rxh4 {[%emt 0:00:23]} 49. Rb7 {[%emt 0:00:08]} Rf4 {[%emt 0:00:58]} 50. Re7+ {[%emt 0:00:44]} Kd6 {[%emt 0:00:22]} 51. Re2 {[%emt 0:01:35]} h4 {[%emt 0:02:47]} 52. Ke3 {[%emt 0:00:13]} Re4+ {[%emt 0:00:17]} 53. Kf3 {[%emt 0:00:13]} Rxe2 {[%emt 0:00:40]} 54. Kxe2 {[%emt 0:00:16]} g5 {[%emt 0:00:28]} 55. Kf3 {[%emt 0:00:48]} h3 {[%emt 0:00:38]} 56. Kg3 {[%emt 0:00:21]} g4 {[%emt 0:00:08]} 57. f3 {[%emt 0:01:07]} f5 {[%emt 0:00:05]} 58. Kh2 {[%emt 0:00:14]} Kc6 {[%emt 0:00:11]} 59. fxg4 {[%emt 0:01:29]} fxg4 {[%emt 0:00:09]} 60. Kg3 {[%emt 0:00:57]} Kb5 {[%emt 0:00:12]} 61. Kh2 {[%emt 0:00:00]} d4 {[%emt 0:00:00]} 62. cxd4 {[%emt 0:00:00]} Kxb4 {[%emt 0:00:07]} 63. d5 {[%emt 0:00:46]} Kc5 {[%emt 0:00:07]} 64. d6 {[%emt 0:00:13]} Kxd6 {[%emt 0:00:09]} 65. Kg3 {[%emt 0:00:15]} Ke5 {[%emt 0:00:08]} 66. Kh2 {[%emt 0:00:07]} Kf4 {[%emt 0:00:09]} 67. Kh1 {[%emt 0:00:06]} Kg3 {[%emt 0:00:28]} 68. Kg1 {[%emt 0:00:09]} h2+ {[%emt 0:00:10]} 69. Kh1 {[%emt 0:00:06]} Kf2 {[%emt 0:00:08]} 70. Kxh2 {[%emt 0:00:20]} g3+ {[%emt 0:00:07]} 71. Kh3 {[%emt 0:00:45]} g2 {[%emt 0:00:08]} 0-1

[Event "DVM U12 2024"]
[Site "Heidelberg"]
[Date "2024.12.28"]
[Round "3"]
[White "Lange, Fynn Jeremy"]
[Black "Engelhaupt, Henry"]
[Result "1/2-1/2"]
[ECO "A20"]
[WhiteElo "1878"]
[BlackElo "1905"]
[Annotator "RC"]
[PlyCount "93"]
[EventDate "2024.12.23"]
[EventType "team-tourn"]
[EventRounds "7"]
[EventCountry "GER"]
[SourceTitle "playchess.com"]
[Source "ChessBase"]
[SourceQuality "1"]
[TimeControl "40/5400+30:1800+30"]

1. c4 {[%emt 0:00:20]} e5 {[%emt 0:00:06]} 2. g3 {[%emt 0:00:25]} Nf6 {[%emt 0:00:18]} 3. Bg2 {[%emt 0:00:15]} c6 {[%emt 0:00:14]} 4. d4 {[%emt 0:01:30]} Bb4+ {[%emt 0:00:10]} 5. Bd2 {[%emt 0:01:00]} Bxd2+ {[%emt 0:00:10]} 6. Qxd2 {[%emt 0:01:00]} d6 {[%emt 0:00:18]} 7. Nc3 {[%emt 0:04:00]} O-O {[%emt 0:00:33]} 8. O-O-O {[%emt 0:02:03]} Qc7 {[%emt 0:09:59]} 9. e3 {[%emt 0:06:19]} Re8 {[%emt 0:02:43]} 10. Qc2 {[%emt 0:04:17]} Nbd7 {[%emt 0:07:31]} 11. Nge2 {[%emt 0:01:39]} Nf8 {[%emt 0:01:35]} 12. Kb1 {[%emt 0:05:17]} Be6 {[%emt 0:01:14]} 13. b3 {[%emt 0:04:54]} a5 {[%emt 0:02:25]} 14. d5 {[%emt 0:01:18]} Bd7 {[%emt 0:00:24]} 15. Qd2 {[%emt 0:00:53]} c5 {[%emt 0:02:12]} 16. a4 {[%emt 0:02:30]} Qb6 {[%emt 0:06:57]} 17. Ka2 {[%emt 0:04:23]} Qd8 {[%emt 0:01:36]} 18. h3 {[%emt 0:14:23]} Qe7 {[%emt 0:03:51]} 19. g4 {[%emt 0:12:23]} Ng6 {[%emt 0:10:51]} 20. Ng3 {[%emt 0:00:00]} Nh4 {[%emt 0:01:29]} 21. Rdg1 {[%emt 0:00:00]} Bc8 {[%emt 0:08:42]} 22. Nb5 {[%emt 0:01:57]} Rd8 {[%emt 0:00:59]} 23. f3 {[%emt 0:03:47]} Kf8 {[%emt 0:04:28]} 24. Qf2 {[%emt 0:00:49]} Bd7 {[%emt 0:06:44]} 25. Nc3 {[%emt 0:01:07]} Rdc8 {[%emt 0:01:05]} 26. Bf1 {[%emt 0:02:28]} Ke8 {[%emt 0:01:15]} 27. Bd3 {[%emt 0:01:30]} Kd8 {[%emt 0:01:39]} 28. Nf1 {[%emt 0:03:46]} Ng6 {[%emt 0:00:20]} 29. h4 {[%emt 0:00:16]} Nf8 {[%emt 0:01:27]} 30. Ng3 {[%emt 0:00:18]} g6 {[%emt 0:01:42]} 31. h5 {[%emt 0:00:43]} Kc7 {[%emt 0:01:09]} 32. Re1 {[%emt 0:04:54]} Be8 {[%emt 0:04:49]} 33. hxg6 {[%emt 0:01:27]} hxg6 {[%emt 0:00:53]} 34. Nge2 {[%emt 0:01:32]} b6 {[%emt 0:01:06]} 35. Rh2 {[%emt 0:01:35]} N6d7 {[%emt 0:01:13]} 36. Qh4 {[%emt 0:01:11]} Qxh4 {[%emt 0:00:41]} 37. Nb5+ {[%emt 0:00:18]} Kd8 {[%emt 0:00:24]} 38. Rxh4 {[%emt 0:00:12]} Ke7 {[%emt 0:00:03]} 39. Nec3 {[%emt 0:01:24]} Nb8 {[%emt 0:01:53]} 40. Rh8 {[%emt 0:00:36]} Bd7 {[%emt 0:02:01]} 41. Reh1 {[%emt 0:32:00]} Na6 {[%emt 0:30:25]} 42. Kb2 {[%emt 0:06:47]} Nb4 {[%emt 0:01:21]} 43. Bb1 {[%emt 0:01:33]} Bxb5 {[%emt 0:04:21]} 44. Nxb5 {[%emt 0:00:27]} Nd7 {[%emt 0:00:46]} 45. R8h7 {[%emt 0:00:00]} Nf6 {[%emt 0:00:00]} 46. R7h3 {[%emt 0:00:00]} Rg8 {[%emt 0:00:00]} 47. Nc3 {[%emt 0:00:00]} 1/2-1/2

[Event "DVM U12 2024"]
[Site "Heidelberg"]
[Date "2024.12.28"]
[Round "3"]
[White "Zimmer, Tim"]
[Black "Shen, Tingrui"]
[Result "0-1"]
[ECO "B90"]
[WhiteElo "1846"]
[BlackElo "2164"]
[Annotator "RC"]
[PlyCount "116"]
[EventDate "2024.12.23"]
[EventType "team-tourn"]
[EventRounds "7"]
[EventCountry "GER"]
[SourceTitle "playchess.com"]
[Source "ChessBase"]
[SourceQuality "1"]
[TimeControl "40/5400+30:1800+30"]

1. e4 {[%emt 0:00:03]} c5 {[%emt 0:00:24]} 2. Nf3 {[%emt 0:00:06]} d6 {[%emt 0:00:25]} 3. d4 {[%emt 0:00:15]} cxd4 {[%emt 0:00:25]} 4. Nxd4 {[%emt 0:00:09]} Nf6 {[%emt 0:00:19]} 5. Nc3 {[%emt 0:00:25]} a6 {[%emt 0:00:15]} 6. f3 {[%emt 0:01:51]} e5 {[%emt 0:00:17]} 7. Nb3 {[%emt 0:00:18]} Be6 {[%emt 0:00:33]} 8. Be3 {[%emt 0:01:15]} Be7 {[%emt 0:01:12]} 9. Qd2 {[%emt 0:00:27]} Nbd7 {[%emt 0:00:19]} 10. g4 {[%emt 0:01:47]} b5 {[%emt 0:00:28]} 11. O-O-O {[%emt 0:02:55]} Nb6 {[%emt 0:01:59]} 12. g5 {[%emt 0:04:46]} Nfd7 {[%emt 0:02:50]} 13. Na5 {[%emt 0:02:29]} Qc7 {[%emt 0:06:26]} 14. Nd5 {[%emt 0:02:21]} Bxd5 {[%emt 0:04:03]} 15. exd5 {[%emt 0:00:40]} Rc8 {[%emt 0:02:43]} 16. Kb1 {[%emt 0:05:58]} O-O {[%emt 0:12:41]} 17. Rg1 {[%emt 0:05:59]} g6 {[%emt 0:11:00]} 18. h4 {[%emt 0:03:50]} Nxd5 {[%emt 0:10:39]} 19. Qxd5 {[%emt 0:04:08]} Qxa5 {[%emt 0:02:50]} 20. h5 {[%emt 0:07:08]} Qc7 {[%emt 0:01:27]} 21. hxg6 {[%emt 0:13:11]} hxg6 {[%emt 0:05:00]} 22. Qd2 {[%emt 0:11:28]} Kg7 {[%emt 0:01:57]} 23. f4 {[%emt 0:04:45]} Rh8 {[%emt 0:03:50]} 24. Bd3 {[%emt 0:03:01]} exf4 {[%emt 0:14:31]} 25. Bd4+ {[%emt 0:04:40]} Ne5 {[%emt 0:00:12]} 26. Qxf4 {[%emt 0:01:49]} Rce8 {[%emt 0:00:45]} 27. Rh1 {[%emt 0:06:08]} Bd8 {[%emt 0:01:59]} 28. a3 {[%emt 0:02:11]} Qe7 {[%emt 0:00:41]} 29. Rhg1 {[%emt 0:04:49]} Rh5 {[%emt 0:00:52]} 30. Rdf1 {[%emt 0:00:14]} Rf8 {[%emt 0:01:27]} 31. Be3 {[%emt 0:03:02]} Rfh8 {[%emt 0:00:59]} 32. Rf2 {[%emt 0:01:46]} Rh4 {[%emt 0:00:33]} 33. Qf6+ {[%emt 0:02:13]} Qxf6 {[%emt 0:00:14]} 34. gxf6+ {[%emt 0:00:05]} Bxf6 {[%emt 0:00:25]} 35. Rgf1 {[%emt 0:00:20]} Ng4 {[%emt 0:03:02]} 36. Rxf6 {[%emt 0:00:52]} Nxf6 {[%emt 0:00:16]} 37. Bg5 {[%emt 0:00:41]} Nd7 {[%emt 0:00:36]} 38. Bxh4 {[%emt 0:00:42]} Rxh4 {[%emt 0:00:14]} 39. b3 {[%emt 0:00:32]} Ne5 {[%emt 0:00:18]} 40. Kb2 {[%emt 0:00:39]} Nxd3+ {[%emt 0:01:22]} 41. cxd3 {[%emt 0:30:02]} a5 {[%emt 0:31:06]} 42. Kc3 {[%emt 0:00:37]} d5 {[%emt 0:00:18]} 43. Re1 {[%emt 0:00:26]} d4+ {[%emt 0:00:13]} 44. Kc2 {[%emt 0:00:07]} Rh2+ {[%emt 0:00:13]} 45. Kb1 {[%emt 0:00:11]} Rd2 {[%emt 0:00:43]} 46. Re5 {[%emt 0:00:03]} Rxd3 {[%emt 0:00:19]} 47. Rxb5 {[%emt 0:00:04]} a4 {[%emt 0:00:32]} 48. Kc2 {[%emt 0:01:23]} Rxb3 {[%emt 0:02:45]} 49. Rxb3 {[%emt 0:00:02]} axb3+ {[%emt 0:00:02]} 50. Kxb3 {[%emt 0:00:02]} Kf8 {[%emt 0:00:36]} 51. Kc4 {[%emt 0:02:04]} Ke7 {[%emt 0:00:22]} 52. Kxd4 {[%emt 0:00:06]} Kd6 {[%emt 0:00:13]} 53. a4 {[%emt 0:00:04]} Kc6 {[%emt 0:00:24]} 54. Ke5 {[%emt 0:00:57]} Kb6 {[%emt 0:00:17]} 55. Kf6 {[%emt 0:00:15]} Ka5 {[%emt 0:00:13]} 56. Ke5 {[%emt 0:00:12]} Kxa4 {[%emt 0:00:17]} 57. Kf6 {[%emt 0:00:24]} Kb5 {[%emt 0:00:12]} 58. Kg5 {[%emt 0:00:05]} f5 {[%emt 0:00:11]} 0-1

[Event "DVM U12 2024"]
[Site "Heidelberg"]
[Date "2024.12.28"]
[Round "3"]
[White "Jahn, Gustav"]
[Black "Tu, Audrey"]
[Result "0-1"]
[ECO "C54"]
[WhiteElo "1822"]
[BlackElo "1734"]
[Annotator "NA RC"]
[PlyCount "72"]
[EventDate "2024.12.23"]
[EventType "team-tourn"]
[EventRounds "7"]
[EventCountry "GER"]
[SourceTitle "playchess.com"]
[Source "ChessBase"]
[SourceQuality "1"]
[TimeControl "40/5400+30:1800+30"]

1. e4 {[%emt 0:00:04]} e5 {[%emt 0:00:05]} 2. Nf3 {[%emt 0:00:24]} Nc6 {[%emt 0:00:07]} 3. Bc4 {[%emt 0:00:13]} Bc5 {[%emt 0:00:05]} 4. c3 {[%emt 0:00:12]} Nf6 {[%emt 0:00:02]} 5. d3 {[%emt 0:00:14]} a6 {[%emt 0:00:17]} 6. O-O {[%emt 0:00:46]} d6 7. h3 {[%emt 0:00:00]} h6 {[%emt 0:00:45]} 8. Re1 {[%emt 0:00:21]} Ba7 {[%emt 0:01:10]} 9. Be3 {[%emt 0:01:29]} Bxe3 {[%emt 0:01:26]} 10. Rxe3 {[%emt 0:00:12]} O-O {[%emt 0:04:05]} 11. Bb3 {[%emt 0:01:51]} Ne7 {[%emt 0:14:49]} 12. d4 {[%emt 0:07:59]} Ng6 {[%emt 0:01:25]} 13. dxe5 {[%emt 0:00:59]} dxe5 {[%emt 0:00:55]} 14. Nbd2 {[%emt 0:02:27]} b5 {[%emt 0:03:08]} 15. Nf1 {[%emt 0:01:47]} Bb7 {[%emt 0:01:53]} 16. Ng3 {[%emt 0:00:33]} Re8 {[%emt 0:06:28]} 17. Qc2 {[%emt 0:05:09]} c5 {[%emt 0:03:52]} 18. Rd1 {[%emt 0:01:47]} Qc7 {[%emt 0:01:55]} 19. c4 {[%emt 0:03:23]} Nf4 {[%emt 0:08:20]} 20. Ne2 {[%emt 0:08:32]} Rac8 {[%emt 0:09:58]} 21. Nc3 {[%emt 0:02:02]} Ne6 {[%emt 0:02:42]} 22. Nd5 {[%emt 0:05:43]} Nxd5 {[%emt 0:00:33]} 23. exd5 {[%emt 0:00:56]} Nd4 {[%emt 0:01:13]} 24. Qd2 {[%emt 0:03:55]} Qd6 {[%emt 0:04:29]} 25. Rde1 {[%emt 0:11:40]} f6 {[%emt 0:03:32]} 26. cxb5 {[%emt 0:08:04]} axb5 {[%emt 0:03:30]} 27. Nxd4 {[%emt 0:01:05]} cxd4 {[%emt 0:00:15]} 28. Rg3 {[%emt 0:00:33]} Kh8 {[%emt 0:03:34]} 29. Qd3 {[%emt 0:06:42]} Bxd5 {[%emt 0:03:50]} 30. Qxb5 {[%emt 0:02:32]} Bxb3 {[%emt 0:01:51]} 31. Qxb3 {[%emt 0:00:56]} e4 {[%emt 0:01:55]} 32. Qd1 {[%emt 0:05:20]} d3 {[%emt 0:09:15]} 33. Qg4 {[%emt 0:05:38]} Rc7 {[%emt 0:04:04]} 34. Qd1 {[%emt 0:08:03]} d2 {[%emt 0:00:57]} 35. Kh2 {[%emt 0:01:30]} Rc1 {[%emt 0:00:53]} 36. Qg4 {[%emt 0:00:13]} Qxg3+ {[%emt 0:00:44]} 0-1

[Event "DVM U12 2024"]
[Site "Heidelberg"]
[Date "2024.12.28"]
[Round "3"]
[White "Berndt, Ronson"]
[Black "Rudnizki, Valentin"]
[Result "1-0"]
[ECO "B44"]
[WhiteElo "1812"]
[BlackElo "1448"]
[Annotator "NA RC"]
[PlyCount "127"]
[EventDate "2024.12.23"]
[EventType "team-tourn"]
[EventRounds "7"]
[EventCountry "GER"]
[SourceTitle "playchess.com"]
[Source "ChessBase"]
[SourceQuality "1"]
[TimeControl "40/5400+30:1800+30"]

1. e4 {[%emt 0:00:19]} c5 {[%emt 0:00:07]} 2. Nf3 {[%emt 0:00:19]} Nc6 {[%emt 0:00:10]} 3. d4 {[%emt 0:00:15]} cxd4 {[%emt 0:00:16]} 4. Nxd4 {[%emt 0:00:10]} e5 {[%emt 0:00:09]} 5. Nb5 {[%emt 0:05:07]} d6 {[%emt 0:00:17]} 6. Be3 {[%emt 0:03:07]} a6 {[%emt 0:02:47]} 7. N5c3 {[%emt 0:00:34]} Nf6 {[%emt 0:01:00]} 8. Be2 {[%emt 0:06:05]} Be6 {[%emt 0:02:28]} 9. Bf3 {[%emt 0:04:54]} b5 {[%emt 0:01:34]} 10. Nd5 {[%emt 0:06:20]} Be7 {[%emt 0:08:52]} 11. Bb6 {[%emt 0:01:55]} Qc8 {[%emt 0:03:55]} 12. Nc7+ {[%emt 0:00:12]} Kd7 {[%emt 0:00:28]} 13. Nxa8 {[%emt 0:00:25]} Qxa8 {[%emt 0:00:12]} 14. Nc3 {[%emt 0:09:33]} Qb7 {[%emt 0:02:49]} 15. Be3 {[%emt 0:00:24]} Rc8 {[%emt 0:00:55]} 16. Rc1 {[%emt 0:12:17]} Na5 {[%emt 0:01:51]} 17. Nd5 {[%emt 0:13:32]} Bxd5 {[%emt 0:00:16]} 18. exd5 {[%emt 0:00:10]} e4 {[%emt 0:00:14]} 19. Bg4+ {[%emt 0:00:15]} Nxg4 {[%emt 0:00:29]} 20. Qxg4+ {[%emt 0:00:07]} Ke8 {[%emt 0:00:24]} 21. Qxe4 {[%emt 0:00:12]} Nc4 {[%emt 0:00:39]} 22. b3 {[%emt 0:02:19]} Ne5 {[%emt 0:01:48]} 23. O-O {[%emt 0:00:31]} g6 {[%emt 0:00:32]} 24. Rfe1 {[%emt 0:01:00]} f5 {[%emt 0:00:47]} 25. Qd4 {[%emt 0:01:04]} Bf6 {[%emt 0:00:54]} 26. Bf4 {[%emt 0:01:56]} Kf7 {[%emt 0:00:30]} 27. Bxe5 {[%emt 0:00:55]} Bxe5 {[%emt 0:01:04]} 28. Qh4 {[%emt 0:00:57]} Kg7 {[%emt 0:00:28]} 29. c4 {[%emt 0:01:49]} b4 {[%emt 0:01:50]} 30. Rcd1 {[%emt 0:01:19]} Bf6 {[%emt 0:02:13]} 31. Qg3 {[%emt 0:01:53]} Be5 {[%emt 0:00:18]} 32. Rxe5 {[%emt 0:01:46]} dxe5 {[%emt 0:00:12]} 33. Qxe5+ {[%emt 0:00:10]} Kg8 {[%emt 0:00:26]} 34. Qe6+ {[%emt 0:00:07]} Kf8 {[%emt 0:01:00]} 35. Re1 {[%emt 0:00:13]} Ra8 {[%emt 0:03:32]} 36. Qf6+ {[%emt 0:00:14]} Qf7 {[%emt 0:00:12]} 37. Qh8+ {[%emt 0:00:16]} Qg8 {[%emt 0:00:14]} 38. Qxg8+ {[%emt 0:00:11]} Kxg8 {[%emt 0:00:10]} 39. f3 {[%emt 0:00:20]} Rd8 {[%emt 0:00:32]} 40. Kf2 {[%emt 0:00:18]} Kf7 {[%emt 0:00:11]} 41. Re6 {[%emt 0:30:36]} a5 {[%emt 0:30:38]} 42. Ra6 {[%emt 0:00:12]} f4 {[%emt 0:01:36]} 43. Rxa5 {[%emt 0:00:11]} Kf6 {[%emt 0:00:12]} 44. Ra6+ {[%emt 0:00:36]} Ke5 {[%emt 0:01:36]} 45. Ke2 {[%emt 0:00:11]} Kd4 {[%emt 0:00:14]} 46. Kd2 {[%emt 0:00:09]} Re8 {[%emt 0:00:24]} 47. Re6 {[%emt 0:00:07]} Ra8 {[%emt 0:00:24]} 48. Re4+ {[%emt 0:00:32]} Kc5 {[%emt 0:00:10]} 49. Kd3 {[%emt 0:00:56]} Rxa2 {[%emt 0:00:16]} 50. Re2 {[%emt 0:00:05]} Ra3 {[%emt 0:00:31]} 51. Rb2 {[%emt 0:00:11]} Ra1 {[%emt 0:00:36]} 52. Ke4 {[%emt 0:00:38]} g5 {[%emt 0:00:13]} 53. Kf5 {[%emt 0:00:25]} Kd4 {[%emt 0:00:47]} 54. d6 {[%emt 0:00:28]} Kc3 {[%emt 0:00:10]} 55. Re2 {[%emt 0:00:09]} Rd1 {[%emt 0:00:26]} 56. Ke6 {[%emt 0:00:11]} Kxb3 {[%emt 0:00:17]} 57. c5 {[%emt 0:00:08]} Kc3 {[%emt 0:00:12]} 58. c6 {[%emt 0:00:11]} b3 {[%emt 0:00:28]} 59. c7 {[%emt 0:00:08]} b2 {[%emt 0:00:12]} 60. c8=Q+ {[%emt 0:00:09]} Kb3 {[%emt 0:00:20]} 61. Qb7+ {[%emt 0:00:19]} Kc4 {[%emt 0:00:20]} 62. Qxb2 {[%emt 0:00:21]} Kd3 {[%emt 0:01:50]} 63. Qc2+ {[%emt 0:00:21]} Kd4 {[%emt 0:00:15]} 64. Re4# {[%emt 0:05:07]} 1-0